bitfinex-derivatives/quotes_BTCF0:USTF0_20210108
["timestamp","ask_amount","ask_price","bid_price","bid_amount"]
[1610065687475,0.12842,39390.0,39371.0,0.13632608]
[1610065687677,0.0752,39389.0,39371.0,0.13632608]
[1610065687877,0.12842,39390.0,39372.0,0.03151638]
[1610065688578,0.12842,39390.0,39372.0,0.69042638]
[1610065688980,0.12842,39390.0,39373.0,0.09387534]
[1610065689479,0.13632608,39374.0,39373.0,0.09387534]
[1610065689879,0.21312608,39374.0,39373.0,0.09387534]
[1610065690282,0.13632608,39374.0,39373.0,0.09387534]
[1610065691285,0.21272608,39374.0,39373.0,0.09387534]
[1610065692686,3.40282608,39374.0,39373.0,0.03151355]
[1610065693087,3.40282608,39374.0,39365.0,0.03152813]
[1610065693289,3.32642608,39374.0,39365.0,0.03152813]
[1610065693488,0.13632608,39366.0,39365.0,0.03152813]
[1610065693688,0.66372608,39366.0,39365.0,0.03152813]
[1610065695590,0.73912608,39366.0,39365.0,0.03152813]
[1610065695791,0.66372608,39366.0,39365.0,0.03152813]
[1610065696692,0.74002608,39366.0,39365.0,0.03152813]
[1610065699195,0.66372608,39366.0,39365.0,0.03152813]
[1610065700196,0.73892608,39366.0,39365.0,0.03152813]
[1610065700396,0.13632608,39366.0,39365.0,0.03152813]
[1610065700996,0.13632608,39366.0,39365.0,0.18750378]
[1610065701196,0.58868508,39366.0,39365.0,0.18750378]
[1610065701598,0.66458508,39366.0,39365.0,0.18750378]
[1610065702398,0.58868508,39366.0,39365.0,0.18750378]
[1610065702597,0.66578508,39366.0,39365.0,0.03152813]
[1610065702800,0.58868508,39366.0,39365.0,0.03152813]
[1610065704902,4.32498508,39366.0,39351.0,0.1559758]
[1610065705303,4.32498508,39366.0,39357.0,0.03153253]
[1610065705501,4.32498508,39366.0,39341.0,0.15599834]
[1610065705502,4.32498508,39366.0,39352.0,0.03153479]
[1610065705703,0.13632608,39358.0,39347.0,0.10114]
[1610065705902,0.4552,39353.0,39347.0,0.10114]
[1610065706103,0.4552,39353.0,39348.0,0.03153742]
[1610065706305,0.4552,39353.0,39339.0,0.1560139]
[1610065706505,0.13632608,39358.0,39339.0,0.1560139]
[1610065706707,4.0066,39349.0,39339.0,0.2637539]
[1610065706906,0.13632608,39358.0,39339.0,0.10774]
[1610065707108,3.3261,39350.0,39340.0,0.03154066]
[1610065707309,0.13632608,39358.0,39340.0,0.03154066]
[1610065707709,0.13632608,39341.0,39340.0,0.03154066]
[1610065709310,4.12892608,39341.0,39340.0,0.03154066]
[1610065710711,4.12892608,39341.0,39340.0,0.03154062]
[1610065711312,4.12892608,39341.0,39319.0,0.18757858]
[1610065711513,4.12892608,39341.0,39340.0,0.03154074]
[1610065711712,3.9926,39341.0,39340.0,0.03154074]
[1610065711915,0.12933,39355.0,39327.0,0.12758]
[1610065712113,0.12933,39355.0,39340.0,0.03153995]
[1610065712315,3.7563,39341.0,39340.0,0.03153995]
[1610065712514,3.7563,39341.0,39327.0,0.12758]
[1610065712515,3.7563,39341.0,39328.0,0.03154077]
[1610065712714,3.7563,39341.0,39327.0,0.12758]
[1610065712914,3.7563,39341.0,39329.0,0.03154174]
[1610065713114,3.7563,39341.0,39328.0,0.03154205]
[1610065713416,3.7563,39341.0,39330.0,0.0315425]
[1610065713617,0.13632608,39331.0,39329.0,0.03154243]
[1610065714016,0.13632608,39331.0,39328.0,0.03154196]
[1610065714217,0.13632608,39331.0,39330.0,0.0315413]
[1610065714417,0.13632608,39331.0,39329.0,0.03154098]
[1610065714816,0.21192608,39331.0,39330.0,0.03154121]
[1610065715217,0.21192608,39331.0,39328.0,0.03154247]
[1610065715518,0.21192608,39331.0,39330.0,0.0315424]
[1610065715720,0.21192608,39331.0,39329.0,0.03154223]
[1610065716020,0.21192608,39331.0,39327.0,0.12758]
[1610065716021,0.21192608,39331.0,39328.0,0.03154218]
[1610065716220,0.21192608,39331.0,39330.0,0.03154229]
[1610065716620,0.21192608,39331.0,39328.0,0.03154222]
[1610065716819,0.21192608,39331.0,39330.0,0.03154211]
[1610065717020,0.21192608,39331.0,39330.0,0.03120916]
[1610065717221,0.21192608,39331.0,39329.0,0.03154221]
[1610065717420,0.13632608,39331.0,39330.0,0.03154203]
[1610065717621,0.13632608,39331.0,39319.0,0.11138]
[1610065717821,0.13632608,39331.0,39330.0,0.03154244]
[1610065718222,0.13632608,39331.0,39320.0,0.03154212]
[1610065718422,0.13632608,39331.0,39319.0,0.11138]
[1610065718423,0.13632608,39331.0,39330.0,0.03154218]
[1610065718627,0.13632608,39331.0,39321.0,0.03154236]
[1610065718827,0.0761,39330.0,39321.0,0.03154236]
[1610065719026,0.0761,39330.0,39319.0,0.11138]
[1610065719226,0.0761,39330.0,39322.0,0.03154237]
[1610065719426,0.13632608,39331.0,39322.0,0.1372]
[1610065719628,0.13632608,39323.0,39322.0,0.1372]
[1610065719827,0.21182608,39323.0,39322.0,0.1372]
[1610065720026,0.21182608,39323.0,39322.0,0.16874159]
[1610065721427,0.13632608,39323.0,39322.0,0.16874159]
[1610065722430,0.21232608,39323.0,39322.0,0.16874159]
[1610065723330,0.13632608,39323.0,39322.0,0.16874159]
[1610065723931,0.13632608,39323.0,39322.0,0.16874238]
[1610065724333,0.21172608,39323.0,39322.0,0.16874238]
[1610065724737,0.13632608,39323.0,39322.0,0.1372]
[1610065724934,0.13632608,39323.0,39322.0,0.03154214]
[1610065725135,0.13632608,39323.0,39322.0,0.11900214]
[1610065725335,0.13632608,39323.0,39322.0,0.08746]
[1610065725535,0.13632608,39323.0,39322.0,0.11900293]
[1610065725735,0.21262608,39323.0,39322.0,0.11900293]
[1610065726335,0.13632608,39323.0,39322.0,0.11900293]
[1610065727839,0.21282608,39323.0,39322.0,0.11900293]
[1610065729439,0.13632608,39323.0,39322.0,0.11900293]
[1610065730542,0.36420189,39323.0,39322.0,0.11900293]
[1610065731041,0.28810189,39323.0,39322.0,0.11900293]
[1610065732244,0.36340189,39323.0,39322.0,0.11900293]
[1610065732644,0.28810189,39323.0,39322.0,0.11900293]
[1610065734348,0.87500189,39323.0,39322.0,0.11900293]
[1610065736551,0.28810189,39323.0,39322.0,0.11900293]
[1610065736949,0.36520189,39323.0,39322.0,0.11900293]
[1610065738152,0.28810189,39323.0,39322.0,0.11900293]
[1610065739153,0.36390189,39323.0,39322.0,0.11900293]
[1610065739353,0.36390189,39323.0,39322.0,0.60590293]
[1610065739658,0.28810189,39323.0,39322.0,0.66832554]
[1610065740658,0.36310189,39323.0,39322.0,0.66832554]
[1610065741458,0.28810189,39323.0,39322.0,0.66832554]
[1610065742359,0.36480189,39323.0,39322.0,0.66832554]
[1610065742759,0.28810189,39323.0,39322.0,0.66832554]
[1610065745064,0.15177581,39323.0,39322.0,0.66832554]
[1610065745467,0.0753,39328.0,39322.0,0.66832554]
[1610065745664,0.0753,39328.0,39327.0,0.13632608]
[1610065745864,3.4984,39364.0,39327.0,0.13632608]
[1610065746064,0.2919,39377.0,39343.0,3.2916]
[1610065746265,0.2919,39377.0,39343.0,3.37849]
[1610065746665,0.2919,39377.0,39344.0,0.18753907]
[1610065747664,0.2919,39377.0,39358.0,0.13632608]
[1610065748066,0.2919,39377.0,39359.0,0.03152357]
[1610065748264,0.2919,39377.0,39362.0,3.0992]
[1610065748464,0.1569,39390.0,39362.0,3.0992]
[1610065748665,0.1569,39390.0,39363.0,0.18747854]
[1610065749064,0.5262,39387.0,39363.0,0.18747854]
[1610065749264,0.1569,39390.0,39363.0,0.18747854]
[1610065749665,2.9139,39382.0,39359.0,0.03152226]
[1610065749865,0.13632608,39360.0,39359.0,0.03152226]
[1610065750064,0.13632608,39360.0,39358.0,0.23627608]
[1610065750264,0.13632608,39360.0,39359.0,0.0315228]
[1610065752366,0.13632608,39360.0,39359.0,0.5052228]
[1610065752968,0.13632608,39360.0,39359.0,0.5676097]
[1610065753170,0.13632608,39360.0,39359.0,0.5052228]
[1610065753369,0.13632608,39360.0,39359.0,0.56761011]
[1610065753669,0.13632608,39360.0,39359.0,0.5052228]
[1610065753870,0.13632608,39360.0,39359.0,0.56761326]
[1610065755072,0.13632608,39360.0,39359.0,0.56761739]
[1610065756975,0.21212608,39360.0,39359.0,0.56761739]
[1610065757176,0.13632608,39360.0,39359.0,0.56761739]
[1610065758277,0.21202608,39360.0,39359.0,0.56761739]
[1610065759979,0.13632608,39360.0,39359.0,0.56761739]
[1610065761080,0.21252608,39360.0,39359.0,0.56761739]
[1610065761582,0.13632608,39360.0,39359.0,0.56761739]
[1610065762683,0.21352608,39360.0,39359.0,0.56761739]
[1610065763684,0.13632608,39360.0,39359.0,0.56761739]
[1610065764685,0.21172608,39360.0,39359.0,0.56761739]
[1610065765785,0.57611223,39360.0,39359.0,0.56761739]
[1610065766287,0.50071223,39360.0,39359.0,0.56761739]
[1610065767388,0.57591223,39360.0,39359.0,0.56761739]
[1610065767787,0.50071223,39360.0,39359.0,0.56761739]
[1610065768790,0.57771223,39360.0,39359.0,0.56761739]
[1610065769792,0.50071223,39360.0,39359.0,0.56761739]
[1610065772395,0.57681223,39360.0,39359.0,0.56761739]
[1610065773396,0.50071223,39360.0,39359.0,0.56761739]
[1610065774499,0.57631223,39360.0,39359.0,0.56761739]
[1610065775700,0.50071223,39360.0,39359.0,0.56761739]
[1610065776701,0.44078615,39360.0,39359.0,0.56761739]
[1610065777102,0.36438615,39360.0,39359.0,0.56761739]
[1610065777702,0.05293958,39360.0,39359.0,0.56761739]
[1610065778102,0.13632608,39382.0,39359.0,0.56761739]
[1610065778501,0.0761,39384.0,39359.0,0.56761739]
[1610065778702,0.2777,39423.0,39360.0,0.09385198]
[1610065779103,0.0769,39409.0,39360.0,2.55639943]
[1610065779301,0.2777,39423.0,39360.0,2.55639943]
[1610065779502,0.1234,39413.0,39362.0,2.46068306]
[1610065779903,0.13632608,39401.0,39400.0,0.13632608]
[1610065780302,0.13632608,39401.0,39400.0,0.16782673]
[1610065780703,0.21342608,39401.0,39400.0,0.32365998]
[1610065780901,0.13632608,39401.0,39400.0,0.32365998]
[1610065781303,0.1234,39413.0,39400.0,0.32365998]
[1610065781503,0.00307833,39440.0,39400.0,0.32365998]
[1610065781705,0.11054797,39442.0,39400.0,0.32365998]
[1610065781903,4.0282,39435.0,39406.0,0.13632608]
[1610065782304,4.0282,39435.0,39407.0,0.03149857]
[1610065782505,0.4734,39425.0,39407.0,0.03149857]
[1610065782905,3.8087,39413.0,39407.0,0.03149857]
[1610065783105,3.3976,39409.0,39405.0,0.18733291]
[1610065783504,3.3976,39409.0,39408.0,0.03150361]
[1610065783705,3.3976,39409.0,39406.0,0.03150272]
[1610065783904,3.3976,39409.0,39408.0,0.0315046]
[1610065784105,3.4729,39409.0,39408.0,0.0315046]
[1610065784306,3.4729,39409.0,39407.0,0.03150381]
[1610065784504,3.4729,39409.0,39408.0,0.03150415]
[1610065785106,3.3976,39409.0,39393.0,0.18735822]
[1610065785305,3.3976,39409.0,39408.0,0.03150366]
[1610065785505,3.3976,39409.0,39394.0,0.03150342]
[1610065785905,3.3976,39409.0,39393.0,0.15585407]
[1610065785906,3.3976,39409.0,39408.0,0.03150319]
[1610065786105,3.3976,39409.0,39393.0,0.15585407]
[1610065786106,0.0756,39409.0,39395.0,0.03150191]
[1610065786305,0.0756,39409.0,39408.0,0.03150166]
[1610065786506,0.0756,39409.0,39408.0,0.00033189]
[1610065786706,0.09847,39413.0,39402.0,4.2544]
[1610065786908,0.09847,39413.0,39408.0,0.00033189]
[1610065787107,0.09847,39413.0,39403.0,0.18735045]
[1610065787307,0.09847,39413.0,39409.0,0.00033189]
[1610065787707,0.0752,39412.0,39403.0,0.18735045]
[1610065787911,0.0752,39412.0,39410.0,0.00033189]
[1610065788107,0.0752,39412.0,39404.0,0.00033189]
[1610065788509,0.09847,39413.0,39403.0,0.18735045]
[1610065788709,0.2894,39426.0,39405.0,0.00033189]
[1610065788910,3.0024,39417.0,39404.0,0.00033191]
[1610065789110,0.2894,39426.0,39404.0,0.00033191]
[1610065789310,3.6738,39420.0,39406.0,0.00033191]
[1610065789512,0.0756,39419.0,39390.0,0.00033191]
[1610065789710,0.0756,39419.0,39407.0,0.00033191]
[1610065790110,0.26372608,39408.0,39390.0,0.18736526]
[1610065790311,0.26372608,39408.0,39406.0,0.03117353]
[1610065790511,0.26372608,39408.0,39394.0,4.0525]
[1610065790911,0.26372608,39408.0,39407.0,0.03150549]
[1610065791112,0.26372608,39408.0,39395.0,0.18737417]
[1610065791311,0.0764,39407.0,39395.0,0.15620046]
[1610065791511,0.0764,39407.0,39396.0,0.03117334]
[1610065791912,0.0764,39407.0,39395.0,0.1873739]
[1610065792113,0.13632608,39397.0,39395.0,0.15586853]
[1610065792311,0.13632608,39397.0,39396.0,0.03117281]
[1610065792512,0.13632608,39397.0,39396.0,0.03150473]
[1610065792713,0.13632608,39397.0,39396.0,0.03150446]
[1610065792913,0.13632608,39397.0,39395.0,0.15586853]
[1610065793112,0.13632608,39397.0,39396.0,0.03150421]
[1610065793313,0.21312608,39397.0,39396.0,0.03150421]
[1610065793513,0.21312608,39397.0,39395.0,0.18737294]
[1610065793713,0.21312608,39397.0,39396.0,0.03150424]
[1610065794315,0.21312608,39397.0,39395.0,0.18737541]
[1610065794516,0.21312608,39397.0,39396.0,0.03150675]
[1610065794717,0.13632608,39397.0,39396.0,0.03150675]
[1610065795014,0.13632608,39397.0,39395.0,0.15586853]
[1610065795015,0.13632608,39397.0,39395.0,0.18737547]
[1610065795215,0.13632608,39397.0,39396.0,0.03150751]
[1610065795616,0.13632608,39397.0,39395.0,0.18737585]
[1610065795815,0.21312608,39397.0,39396.0,0.03150754]
[1610065796215,0.13632608,39397.0,39396.0,0.03150754]
[1610065796417,0.13632608,39397.0,39396.0,0.03150645]
[1610065796616,0.13632608,39397.0,39395.0,0.18737401]
[1610065796816,0.13632608,39397.0,39396.0,0.03150451]
[1610065797117,0.13632608,39397.0,39396.0,0.03150335]
[1610065797319,0.13632608,39397.0,39395.0,0.18737171]
[1610065802023,0.0766,39396.0,39395.0,0.18737171]
[1610065802425,0.13632608,39397.0,39395.0,0.18737171]
[1610065803125,0.075,39396.0,39395.0,0.18737171]
[1610065803724,0.13632608,39397.0,39395.0,0.18737171]
[1610065806027,0.0758,39396.0,39395.0,0.18737171]
[1610065806528,0.13632608,39397.0,39395.0,0.18737171]
[1610065807731,0.077,39396.0,39395.0,0.18737171]
[1610065808132,0.13632608,39397.0,39395.0,0.18737171]
[1610065809134,0.0758,39396.0,39395.0,0.18737171]
[1610065809333,0.13632608,39397.0,39395.0,0.18737171]
[1610065810136,3.4087,39396.0,39395.0,0.18737171]
[1610065810335,3.4087,39396.0,39389.0,0.0315049]
[1610065810336,3.4855,39396.0,39389.0,0.0315049]
[1610065810534,3.61401,39396.0,39395.0,0.03150529]
[1610065810936,3.61401,39396.0,39390.0,0.03150732]
[1610065811135,3.61401,39396.0,39395.0,0.03151058]
[1610065811334,3.61401,39396.0,39391.0,0.03150999]
[1610065811534,3.61401,39396.0,39395.0,0.03150965]
[1610065811935,3.61401,39396.0,39379.0,0.18737027]
[1610065812135,3.61401,39396.0,39395.0,0.03151073]
[1610065812336,3.61401,39396.0,39380.0,0.03151121]
[1610065812738,3.61401,39396.0,39379.0,0.18737248]
[1610065812936,0.20531,39396.0,39381.0,0.03151216]
[1610065813140,4.2393,39383.0,39380.0,0.03151286]
[1610065813537,4.2393,39383.0,39382.0,0.03151304]
[1610065813742,4.2393,39383.0,39381.0,0.0315129]
[1610065813937,4.2393,39383.0,39382.0,0.0315151]
[1610065814138,4.37562608,39383.0,39382.0,0.0315151]
[1610065814538,4.37562608,39383.0,39367.0,0.18741343]
[1610065814738,4.37562608,39383.0,39382.0,0.03151544]
[1610065814938,4.37562608,39383.0,39382.0,0.00033326]
[1610065815138,4.37562608,39383.0,39368.0,0.03151557]
[1610065815342,4.45162608,39383.0,39382.0,0.00033326]
[1610065815540,4.45162608,39383.0,39369.0,0.03151636]
[1610065815742,4.37562608,39383.0,39369.0,0.00033328]
[1610065815941,4.37562608,39383.0,39382.0,0.00033328]
[1610065816145,4.37562608,39383.0,39370.0,0.00033328]
[1610065816345,4.37562608,39383.0,39382.0,0.0003333]
[1610065816547,4.37562608,39383.0,39371.0,0.0003333]
[1610065816946,4.37562608,39383.0,39367.0,0.18741665]
[1610065817145,4.37562608,39383.0,39372.0,0.0003333]
[1610065817346,4.37562608,39383.0,39368.0,0.0315181]
[1610065817647,4.37562608,39383.0,39373.0,0.0003333]
[1610065817849,4.37562608,39383.0,39369.0,0.03151796]
[1610065818148,0.13632608,39370.0,39367.0,0.18741667]
[1610065818547,0.13632608,39370.0,39367.0,0.15589837]
[1610065818748,0.21292608,39370.0,39368.0,0.03151824]
[1610065819248,0.0757,39369.0,39359.0,0.03151853]
[1610065819449,0.0757,39369.0,39346.0,0.15592437]
[1610065819848,0.0757,39369.0,39360.0,0.03151891]
[1610065820049,0.13632608,39370.0,39359.0,0.03151905]
[1610065820249,0.13632608,39360.0,39353.0,0.11957]
[1610065820852,0.13632608,39360.0,39354.0,0.03151915]
[1610065821051,0.0754,39359.0,39354.0,0.03151915]
[1610065822153,0.13632608,39355.0,39354.0,0.03151915]
[1610065823458,0.13632608,39355.0,39354.0,0.03152188]
[1610065824459,0.13632608,39355.0,39354.0,0.03152984]
[1610065825059,0.13632608,39355.0,39344.0,0.03153027]
[1610065825262,0.13632608,39355.0,39354.0,0.03153075]
[1610065825660,0.13632608,39355.0,39345.0,0.0315314]
[1610065825859,0.13632608,39355.0,39354.0,0.03153192]
[1610065826060,0.13632608,39355.0,39346.0,0.03153178]
[1610065826259,0.13632608,39347.0,39346.0,0.03153178]
[1610065826461,0.13632608,39347.0,39334.0,0.10307]
[1610065826659,0.13632608,39347.0,39346.0,0.03153454]
[1610065826859,0.13632608,39347.0,39335.0,0.03153463]
[1610065827059,0.13632608,39347.0,39346.0,0.03153478]
[1610065827459,0.13632608,39347.0,39341.0,3.9361]
[1610065827659,0.13632608,39347.0,39346.0,0.03153483]
[1610065827859,0.13632608,39347.0,39346.0,0.00033347]
[1610065828061,0.13632608,39347.0,39342.0,0.18754177]
[1610065828260,0.09763,39352.0,39346.0,0.00033347]
[1610065828459,0.5686,39351.0,39343.0,0.00033347]
[1610065828660,0.09763,39352.0,39347.0,0.00033347]
[1610065828860,3.3028,39348.0,39347.0,0.00033347]
[1610065829060,3.3028,39348.0,39335.0,0.03153577]
[1610065829260,3.3028,39348.0,39326.0,4.0889]
[1610065829261,3.3028,39348.0,39347.0,0.00033349]
[1610065829561,3.3028,39348.0,39327.0,0.18755241]
[1610065829962,3.3028,39348.0,39347.0,0.00033351]
[1610065830160,3.43912608,39348.0,39328.0,0.03153926]
[1610065830361,3.43912608,39348.0,39327.0,0.15601483]
[1610065830362,3.43912608,39348.0,39347.0,0.00033351]
[1610065830762,3.43912608,39348.0,39329.0,0.03153939]
[1610065830962,3.43912608,39348.0,39347.0,0.00033351]
[1610065831161,0.13632608,39348.0,39330.0,0.03153917]
[1610065831360,0.13632608,39348.0,39347.0,0.03153947]
[1610065831762,0.13632608,39348.0,39330.0,0.18757031]
[1610065831962,0.13632608,39348.0,39347.0,0.03153986]
[1610065832162,0.72512608,39348.0,39331.0,0.03153973]
[1610065832563,0.72512608,39348.0,39329.0,0.18757092]
[1610065832762,0.72512608,39348.0,39332.0,0.03154015]
[1610065832961,0.72512608,39348.0,39330.0,0.03154023]
[1610065833362,0.72512608,39348.0,39329.0,0.18757106]
[1610065833562,0.72512608,39348.0,39331.0,0.03154012]
[1610065833763,0.72512608,39348.0,39330.0,0.03153996]
[1610065834164,0.72512608,39348.0,39332.0,0.03154005]
[1610065834363,0.5888,39348.0,39331.0,0.0315395]
[1610065834563,0.5888,39348.0,39333.0,0.03153978]
[1610065834764,0.077,39347.0,39333.0,0.03153978]
[1610065834963,0.077,39347.0,39332.0,0.03153959]
[1610065835164,0.077,39347.0,39334.0,0.0315395]
[1610065835364,0.077,39347.0,39329.0,0.15603103]
[1610065835365,0.077,39347.0,39333.0,0.03153955]
[1610065835769,0.5888,39348.0,39335.0,0.0315394]
[1610065835967,0.5888,39348.0,39334.0,0.03153963]
[1610065836166,0.5888,39348.0,39336.0,0.03153981]
[1610065836366,0.5888,39348.0,39335.0,0.03153962]
[1610065836767,0.0753,39347.0,39329.0,0.18757101]
[1610065836968,0.0753,39347.0,39336.0,0.03153996]
[1610065837170,0.0753,39347.0,39330.0,0.03154003]
[1610065837571,0.0753,39347.0,39329.0,0.18757124]
[1610065837771,2.9409,39330.0,39322.0,0.08746]
[1610065837972,2.9409,39330.0,39311.0,3.2834]
[1610065838372,0.13632608,39312.0,39304.0,0.13632608]
[1610065838772,3.6081,39320.0,39305.0,0.03154673]
[1610065839875,0.0768,39319.0,39305.0,0.03154673]
[1610065840275,0.13632608,39306.0,39305.0,0.03154673]
[1610065840878,0.21172608,39306.0,39305.0,0.03154673]
[1610065841477,4.15402608,39306.0,39305.0,0.03154673]
[1610065841879,4.07862608,39306.0,39305.0,0.03154673]
[1610065842682,4.07862608,39306.0,39290.0,0.1560931]
[1610065843082,4.07862608,39306.0,39290.0,0.18765241]
[1610065843280,4.07862608,39306.0,39291.0,0.03155992]
[1610065843882,4.07862608,39306.0,39290.0,0.31164157]
[1610065844081,4.07862608,39306.0,39292.0,0.03156164]
[1610065844282,0.13632608,39293.0,39292.0,0.03122788]
[1610065844482,0.13632608,39293.0,39291.0,0.03156155]
[1610065844682,0.13632608,39293.0,39292.0,0.03156254]
[1610065845184,3.5905,39292.0,39267.0,3.4204]
[1610065845384,0.13632608,39293.0,39292.0,0.03156597]
[1610065845783,0.13632608,39293.0,39273.0,0.08404]
[1610065845985,4.18672608,39293.0,39292.0,0.0315753]
[1610065846183,4.18672608,39293.0,39274.0,0.03157662]
[1610065846384,0.13632608,39275.0,39262.0,0.11034]
[1610065846584,3.3122,39263.0,39262.0,0.11034]
[1610065846985,3.3122,39263.0,39262.0,0.1419254]
[1610065847385,3.3122,39263.0,39262.0,0.0315854]
[1610065847784,3.3122,39263.0,39239.0,0.03158924]
[1610065847985,0.12294,39264.0,39262.0,0.0315893]
[1610065848385,0.13632608,39263.0,39239.0,0.09126]
[1610065848785,4.0439,39240.0,39239.0,0.09126]
[1610065849186,4.0439,39240.0,39239.0,0.12285453]
[1610065849385,4.0439,39240.0,39216.0,0.1563131]
[1610065849586,4.0439,39240.0,39209.0,0.15632419]
[1610065849786,0.11216,39246.0,39212.0,3.4431]
[1610065850186,3.4387,39245.0,39213.0,0.18793994]
[1610065850387,3.4387,39245.0,39223.0,0.13632608]
[1610065850786,3.4387,39245.0,39224.0,0.14032048]
[1610065851190,3.4387,39245.0,39225.0,0.03159979]
[1610065851790,3.4387,39245.0,39226.0,0.03159943]
[1610065852391,0.13632608,39230.0,39229.0,0.13632608]
[1610065852792,0.13632608,39230.0,39229.0,0.16792705]
[1610065852991,3.6276,39232.0,39229.0,0.03160097]
[1610065853392,3.6276,39232.0,39225.0,0.03160273]
[1610065853594,3.6276,39232.0,39230.0,0.03160287]
[1610065853795,0.11087,39254.0,39224.0,0.10872]
[1610065853994,0.11087,39254.0,39230.0,4.0593]
[1610065854396,0.13632608,39242.0,39241.0,0.13632608]
[1610065854796,0.09398,39251.0,39241.0,0.13632608]
[1610065854998,0.09398,39251.0,39245.0,2.9024]
[1610065855397,0.09398,39251.0,39246.0,0.03159956]
[1610065855797,0.09398,39251.0,39246.0,0.09412219]
[1610065855998,0.12294,39264.0,39246.0,0.09412219]
[1610065856199,2.9859,39283.0,39246.0,0.09412219]
[1610065856401,2.9859,39283.0,39271.0,0.13632608]
[1610065856598,0.13734447,39292.0,39271.0,0.13632608]
[1610065856800,3.58984447,39292.0,39272.0,0.00033614]
[1610065857199,3.0621,39273.0,39272.0,0.00033614]
[1610065857401,3.0621,39273.0,39259.0,0.03159505]
[1610065857600,3.1796,39273.0,39272.0,0.00033617]
[1610065857800,3.1796,39273.0,39260.0,0.00033619]
[1610065858200,3.1796,39273.0,39243.0,0.0316014]
[1610065858401,0.13632608,39244.0,39243.0,0.03126518]
[1610065859003,0.13632608,39244.0,39240.0,0.03160812]
[1610065859201,0.13632608,39244.0,39243.0,0.0316095]
[1610065859402,0.13632608,39244.0,39241.0,0.03160977]
[1610065859801,0.13632608,39244.0,39243.0,0.03161016]
[1610065860002,0.13632608,39244.0,39224.0,0.10872]
[1610065860003,0.13632608,39244.0,39242.0,0.03160985]
[1610065860203,0.13632608,39244.0,39243.0,0.03160985]
[1610065860803,0.13632608,39244.0,39230.0,0.03161003]
[1610065861003,0.13632608,39244.0,39243.0,0.0316099]
[1610065861203,3.84802608,39244.0,39243.0,0.0316099]
[1610065861403,3.84802608,39244.0,39224.0,0.10872]
[1610065861404,3.84802608,39244.0,39231.0,0.03160997]
[1610065861606,3.84802608,39244.0,39243.0,0.03161095]
[1610065861803,3.84802608,39244.0,39232.0,0.03161171]
[1610065862204,3.84802608,39244.0,39243.0,0.03161233]
[1610065862403,3.84802608,39244.0,39233.0,0.03161291]
[1610065862603,3.84802608,39244.0,39224.0,0.10872]
[1610065862804,3.84802608,39244.0,39219.0,0.06254928]
[1610065863004,3.84802608,39244.0,39234.0,0.03161469]
[1610065863204,3.84802608,39244.0,39221.0,0.09446]
[1610065863404,0.13632608,39244.0,39235.0,0.0316162]
[1610065863605,3.4099,39236.0,39235.0,0.03127982]
[1610065863805,3.4099,39236.0,39222.0,0.03161718]
[1610065864004,3.4099,39236.0,39235.0,0.03161836]
[1610065864205,3.4099,39236.0,39221.0,0.09446]
[1610065864404,0.13632608,39222.0,39203.0,0.06256392]
[1610065864605,3.125,39218.0,39203.0,0.06256392]
[1610065864803,3.125,39218.0,39210.0,0.03162376]
[1610065865004,3.125,39218.0,39204.0,0.03162455]
[1610065865204,0.10964,39220.0,39211.0,0.03128989]
[1610065865405,3.0562,39212.0,39211.0,0.03162638]
[1610065865605,3.0562,39212.0,39197.0,0.03162741]
[1610065865804,3.0562,39212.0,39211.0,0.03162841]
[1610065866005,3.0562,39212.0,39183.0,0.08611]
[1610065866204,0.10964,39220.0,39183.0,0.08611]
[1610065866405,3.4275,39189.0,39184.0,0.03163469]
[1610065867006,3.4275,39189.0,39175.0,0.13632608]
[1610065867204,0.10639,39203.0,39175.0,0.13632608]
[1610065867405,3.7258,39182.0,39176.0,0.03164538]
[1610065867606,0.10639,39203.0,39176.0,0.03164538]
[1610065868408,0.13632608,39197.0,39196.0,0.13632608]
[1610065868907,0.13632608,39197.0,39196.0,0.13666277]
[1610065869108,0.13632608,39197.0,39196.0,0.1679702]
[1610065869507,0.13632608,39197.0,39196.0,0.03165123]
[1610065869707,0.13632608,39197.0,39175.0,0.06262201]
[1610065869708,4.33882608,39197.0,39175.0,0.06262201]
[1610065869907,3.2029,39184.0,39175.0,0.06262201]
[1610065870107,3.32818,39184.0,39162.0,0.03165845]
[1610065870308,3.32818,39184.0,39176.0,0.03165929]
[1610065870508,3.32818,39184.0,39173.0,0.13632608]
[1610065870909,3.32818,39184.0,39174.0,0.03166165]
[1610065872107,3.32818,39184.0,39161.0,0.1162]
[1610065872108,3.32818,39184.0,39162.0,0.03166097]
[1610065872508,3.32818,39184.0,39168.0,0.13632608]
[1610065872907,3.32818,39184.0,39169.0,0.03166275]
[1610065873906,0.12528,39184.0,39169.0,0.03166275]
[1610065874510,0.13632608,39175.0,39174.0,0.13632608]
[1610065874910,0.13632608,39175.0,39174.0,0.16798354]
[1610065875110,0.12528,39184.0,39174.0,0.16798354]
[1610065875312,4.1536,39199.0,39174.0,0.16798354]
[1610065875712,3.5395,39223.0,39175.0,0.03165272]
[1610065876512,0.13632608,39200.0,39199.0,0.13632608]
[1610065876714,0.27179608,39200.0,39199.0,0.13632608]
[1610065876913,0.27179608,39200.0,39199.0,0.16797066]
[1610065877314,0.27179608,39200.0,39199.0,0.03164458]
[1610065877716,0.27179608,39200.0,39174.0,0.09427211]
[1610065878114,0.27179608,39200.0,39199.0,0.03164635]
[1610065878315,0.27179608,39200.0,39175.0,0.03164416]
[1610065878514,0.27179608,39200.0,39174.0,0.4239]
[1610065878515,0.13547,39200.0,39199.0,0.03164661]
[1610065878916,0.13547,39200.0,39194.0,0.13632608]
[1610065879116,0.13547,39200.0,39199.0,0.03164742]
[1610065879316,0.13547,39200.0,39195.0,0.03164662]
[1610065879719,0.13547,39200.0,39199.0,0.0316458]
[1610065879917,0.13547,39200.0,39196.0,0.03164516]
[1610065880118,0.13547,39200.0,39199.0,0.03164494]
[1610065880518,0.13547,39200.0,39199.0,0.13632608]
[1610065880717,0.13547,39200.0,39199.0,0.16797087]
[1610065881918,0.13632608,39203.0,39199.0,0.16797087]
[1610065882119,0.5788,39227.0,39199.0,0.16797087]
[1610065882320,0.5788,39227.0,39200.0,0.03164139]
[1610065882519,0.281,39227.0,39213.0,0.13632608]
[1610065882721,0.1569,39269.0,39213.0,0.13632608]
[1610065882919,3.971,39246.0,39213.0,0.13632608]
[1610065883121,3.971,39246.0,39214.0,0.03163615]
[1610065884425,0.13632608,39215.0,39214.0,0.03163615]
[1610065885627,0.13632608,39215.0,39214.0,0.00033659]
[1610065885826,0.13632608,39215.0,39201.0,0.03163517]
[1610065886026,0.13632608,39215.0,39214.0,0.00033663]